[Event "Fagernes GM-A 2019"]
[Site "Fagernes"]
[Date "2019.04.19"]
[Round "7.19"]
[White "Bjerke, Richard"]
[Black "Machlik, Edit"]
[Result "1/2-1/2"]
[ECO "E54"]
[WhiteElo "2156"]
[BlackElo "2109"]
[Annotator "NA"]
[PlyCount "88"]
[EventDate "2019.04.14"]
[EventType "tourn"]
[EventCountry "NOR"]
[SourceTitle "playchess.com"]
[Source "ChessBase"]
[SourceQuality "1"]
[TimeControl "40/7200:3600"]

1. d4 {[%emt 0:00:05]} Nf6 {[%emt 0:00:10]} 2. c4 {[%emt 0:00:17]} e6 {[%emt 0:00:05]} 3. Nc3 {[%emt 0:00:34]} Bb4 {[%emt 0:00:27]} 4. e3 {[%emt 0:00:26]} O-O {[%emt 0:00:50]} 5. Bd3 {[%emt 0:00:35]} d5 {[%emt 0:07:46]} 6. Nf3 {[%emt 0:01:21]} c5 {[%emt 0:00:42]} 7. O-O {[%emt 0:00:49]} dxc4 {[%emt 0:03:33]} 8. Bxc4 {[%emt 0:00:13]} cxd4 {[%emt 0:01:00]} 9. exd4 {[%emt 0:00:13]} b6 {[%emt 0:02:15]} 10. Qe2 {[%emt 0:02:48]} Bb7 {[%emt 0:03:39]} 11. Rd1 {[%emt 0:00:14]} Bxc3 {[%emt 0:11:09]} 12. bxc3 {[%emt 0:00:35]} h6 {[%emt 0:11:05]} 13. Bd3 {[%emt 0:25:02]} Qc7 {[%emt 0:06:15]} 14. c4 {[%emt 0:03:04]} Nc6 {[%emt 0:04:09]} 15. Ba3 {[%emt 0:10:58]} Rfd8 {[%emt 0:02:16]} 16. h3 {[%emt 0:00:44]} Rac8 {[%emt 0:05:18]} 17. Qe3 {[%emt 0:06:15]} Ba6 {[%emt 0:12:25]} 18. Rac1 {[%emt 0:09:21]} Qb7 {[%emt 0:09:48]} 19. Qf4 {[%emt 0:06:20]} b5 {[%emt 0:16:50]} 20. Rb1 {[%emt 0:05:32]} b4 {[%emt 0:00:04]} 21. Bb2 {[%emt 0:04:39]} Qc7 {[%emt 0:05:17]} 22. Qh4 {[%emt 0:01:29]} Ne8 {[%emt 0:05:41]} 23. Bc1 {[%emt 0:07:52]} Qe7 {[%emt 0:01:44]} 24. Qxe7 {[%emt 0:01:21]} Nxe7 {[%emt 0:00:04]} 25. Rxb4 {[%emt 0:00:09]} Nc6 {[%emt 0:01:46]} 26. Ra4 {[%emt 0:00:41]} Bb7 {[%emt 0:00:01]} 27. Ba3 {[%emt 0:02:44]} Nf6 {[%emt 0:01:01]} 28. Bc5 {[%emt 0:03:42]} a6 {[%emt 0:01:14]} 29. Bb6 {[%emt 0:00:59]} Rd7 {[%emt 0:00:18]} 30. Ne5 {[%emt 0:07:00]} Nxe5 {[%emt 0:00:02]} 31. dxe5 {[%emt 0:00:17]} Ne4 {[%emt 0:01:19]} 32. Ra3 {[%emt 0:04:11]} g6 {[%emt 0:00:14]} 33. Be3 {[%emt 0:00:39]} Kg7 {[%emt 0:00:15]} 34. Rb1 {[%emt 0:00:10]} Nc5 {[%emt 0:00:50]} 35. Bxc5 {[%emt 0:01:56]} Rxc5 {[%emt 0:00:00]} 36. f4 {[%emt 0:00:37]} g5 {[%emt 0:00:01]} 37. g3 {[%emt 0:00:22]} Rxd3 {[%emt 0:00:12]} 38. Rxd3 {[%emt 0:01:11]} Be4 {[%emt 0:00:01]} 39. Rbd1 {[%emt 0:01:08]} Bxd3 {[%emt 0:00:01]} 40. Rxd3 {[%emt 0:00:09]} Rxc4 {[%emt 0:00:00]} 41. fxg5 {[%emt 1:02:23]} hxg5 {[%emt 1:00:07]} 42. Ra3 {[%emt 0:00:27]} Rc6 {[%emt 0:00:00]} 43. Ra5 {[%emt 0:00:00]} Kg6 {[%emt 0:00:00]} 44. g4 {[%emt 0:00:00]} Kg7 {[%emt 0:00:00]} 1/2-1/2

[Event "Fagernes GM-A 2019"]
[Site "Fagernes"]
[Date "2019.04.19"]
[Round "7.20"]
[White "Gronnestad, Anita"]
[Black "Lillevold, Frode"]
[Result "1-0"]
[ECO "D48"]
[WhiteElo "1954"]
[BlackElo "2076"]
[Annotator "NA"]
[PlyCount "81"]
[EventDate "2019.04.14"]
[EventType "tourn"]
[EventCountry "NOR"]
[SourceTitle "playchess.com"]
[Source "ChessBase"]
[SourceQuality "1"]
[TimeControl "40/7200:3600"]

1. c4 {[%emt 0:00:03]} e6 {[%emt 0:00:02]} 2. d4 {[%emt 0:00:08]} d5 {[%emt 0:00:06]} 3. Nc3 {[%emt 0:00:06]} c6 {[%emt 0:00:11]} 4. e3 {[%emt 0:01:12]} Nf6 {[%emt 0:00:21]} 5. Nf3 {[%emt 0:00:33]} Nbd7 {[%emt 0:00:10]} 6. Bd3 {[%emt 0:01:03]} dxc4 {[%emt 0:00:30]} 7. Bxc4 {[%emt 0:00:07]} b5 {[%emt 0:00:08]} 8. Bd3 {[%emt 0:00:14]} a6 {[%emt 0:00:17]} 9. e4 {[%emt 0:00:44]} c5 {[%emt 0:00:48]} 10. d5 {[%emt 0:06:33]} Bb7 {[%emt 0:06:50]} 11. dxe6 {[%emt 0:10:53]} fxe6 {[%emt 0:00:15]} 12. O-O {[%emt 0:01:52]} c4 {[%emt 0:06:16]} 13. Bc2 {[%emt 0:04:32]} Qc7 {[%emt 0:00:04]} 14. Ng5 {[%emt 0:06:44]} Nc5 {[%emt 0:05:15]} 15. e5 {[%emt 0:10:52]} Qc6 {[%emt 0:11:55]} 16. f3 {[%emt 0:00:33]} Nd5 {[%emt 0:05:24]} 17. Nxd5 {[%emt 0:05:38]} Qxd5 {[%emt 0:02:38]} 18. Qxd5 {[%emt 0:00:48]} Bxd5 {[%emt 0:00:45]} 19. Bxh7 {[%emt 0:01:07]} Be7 {[%emt 0:24:14]} 20. Bg6+ {[%emt 0:01:17]} Kd7 {[%emt 0:00:01]} 21. Rd1 {[%emt 0:02:53]} Kc6 {[%emt 0:01:18]} 22. Be3 {[%emt 0:07:22]} b4 {[%emt 0:08:56]} 23. Rac1 {[%emt 0:05:44]} Kb5 {[%emt 0:04:14]} 24. h3 {[%emt 0:09:43]} a5 {[%emt 0:05:17]} 25. Nf7 {[%emt 0:16:58]} Rhc8 {[%emt 0:09:29]} 26. h4 {[%emt 0:01:20]} a4 {[%emt 0:02:40]} 27. Bg5 {[%emt 0:05:48]} Bxg5 {[%emt 0:05:15]} 28. Nd6+ {[%emt 0:00:15]} Ka6 {[%emt 0:10:39]} 29. hxg5 {[%emt 0:00:04]} Nd7 {[%emt 0:00:20]} 30. Nxc8 {[%emt 0:00:25]} Rxc8 {[%emt 0:00:26]} 31. f4 {[%emt 0:01:47]} Kb5 {[%emt 0:00:36]} 32. Bf5 {[%emt 0:01:50]} Nb6 {[%emt 0:01:12]} 33. Bg4 {[%emt 0:00:36]} c3 {[%emt 0:00:33]} 34. bxc3 {[%emt 0:00:32]} Rxc3 {[%emt 0:00:19]} 35. Be2+ {[%emt 0:01:13]} Bc4 {[%emt 0:00:33]} 36. Kf2 {[%emt 0:01:09]} Nd5 {[%emt 0:00:56]} 37. f5 {[%emt 0:03:38]} Bxe2 {[%emt 0:00:28]} 38. Rxd5+ {[%emt 0:01:22]} exd5 {[%emt 0:00:03]} 39. Rxc3 {[%emt 0:00:07]} bxc3 {[%emt 0:00:03]} 40. Kxe2 {[%emt 0:00:07]} Kc4 {[%emt 0:00:29]} 41. e6 {[%emt 1:00:09]} 1-0

[Event "Fagernes GM-A 2019"]
[Site "Fagernes"]
[Date "2019.04.20"]
[Round "8.3"]
[White "Urkedal, Frode Olav Olsen"]
[Black "Romanov, Evgeny"]
[Result "1/2-1/2"]
[ECO "D31"]
[WhiteElo "2513"]
[BlackElo "2576"]
[Annotator "ChessBase"]
[PlyCount "92"]
[EventDate "2019.04.14"]
[EventType "tourn"]
[EventCountry "NOR"]
[SourceTitle "playchess.com"]
[Source "ChessBase"]
[SourceQuality "1"]
[TimeControl "40/7200:3600"]

1. d4 {[%emt 0:00:02]} d5 {[%emt 0:09:34]} 2. c4 {[%emt 0:00:07]} e6 {[%emt 0:00:04]} 3. Nc3 {[%emt 0:00:05]} Bb4 {[%emt 0:00:05]} 4. cxd5 {[%emt 0:00:42]} exd5 {[%emt 0:00:08]} 5. Nf3 {[%emt 0:00:03]} Ne7 {[%emt 0:02:35]} 6. Bf4 {[%emt 0:01:09]} O-O {[%emt 0:02:28]} 7. e3 {[%emt 0:00:09]} c6 {[%emt 0:01:02]} 8. Bd3 {[%emt 0:03:04]} Bf5 {[%emt 0:01:30]} 9. O-O {[%emt 0:00:11]} Bxd3 {[%emt 0:03:40]} 10. Qxd3 {[%emt 0:00:06]} Ng6 {[%emt 0:00:30]} 11. Bg3 {[%emt 0:00:55]} a5 {[%emt 0:01:17]} 12. h4 {[%emt 0:05:32]} Re8 {[%emt 0:14:04]} 13. h5 {[%emt 0:08:51]} Nf8 {[%emt 0:00:12]} 14. Rfe1 {[%emt 0:04:36]} Nbd7 {[%emt 0:02:15]} 15. a3 {[%emt 0:05:19]} Be7 {[%emt 0:01:18]} 16. e4 {[%emt 0:04:59]} Nf6 {[%emt 0:03:06]} 17. exd5 {[%emt 0:09:41]} Nxd5 {[%emt 0:01:35]} 18. Re5 {[%emt 0:02:07]} Bf6 {[%emt 0:04:08]} 19. Rxe8 {[%emt 0:00:35]} Qxe8 {[%emt 0:00:02]} 20. Nxd5 {[%emt 0:00:26]} cxd5 {[%emt 0:00:07]} 21. Rc1 {[%emt 0:06:04]} Ne6 {[%emt 0:05:12]} 22. h6 {[%emt 0:10:26]} g6 {[%emt 0:11:38]} 23. Qb3 {[%emt 0:15:31]} Rc8 {[%emt 0:00:14]} 24. Re1 {[%emt 0:03:08]} Qc6 {[%emt 0:02:53]} 25. Ne5 {[%emt 0:06:03]} Nxd4 {[%emt 0:19:47]} 26. Nxc6 {[%emt 0:00:08]} Nxb3 {[%emt 0:00:04]} 27. Ne7+ {[%emt 0:00:05]} Bxe7 {[%emt 0:00:05]} 28. Rxe7 {[%emt 0:00:03]} d4 {[%emt 0:00:04]} 29. Rd7 {[%emt 0:00:35]} b5 {[%emt 0:08:28]} 30. Be5 {[%emt 0:02:19]} Kf8 {[%emt 0:00:56]} 31. Bf6 {[%emt 0:00:08]} Ke8 {[%emt 0:00:59]} 32. Rd5 {[%emt 0:01:40]} a4 {[%emt 0:04:14]} 33. g4 {[%emt 0:03:28]} Nc5 {[%emt 0:01:17]} 34. Bxd4 {[%emt 0:02:42]} Ne6 {[%emt 0:00:33]} 35. Bf6 {[%emt 0:05:34]} Rc5 {[%emt 0:01:45]} 36. Rd6 {[%emt 0:00:29]} g5 {[%emt 0:04:58]} 37. f3 {[%emt 0:04:03]} Rc1+ {[%emt 0:03:19]} 38. Kf2 {[%emt 0:00:07]} Rh1 {[%emt 0:01:01]} 39. Ke3 {[%emt 0:07:15]} Re1+ {[%emt 0:01:11]} 40. Kf2 {[%emt 0:00:19]} Rh1 {[%emt 0:00:13]} 41. Bg7 {[%emt 0:18:54]} Nf4 {[%emt 0:00:18]} 42. Ra6 {[%emt 0:03:10]} Rh2+ {[%emt 0:00:54]} 43. Ke3 {[%emt 0:01:09]} Re2+ {[%emt 0:01:16]} 44. Kd4 {[%emt 0:00:04]} Rxb2 {[%emt 0:00:25]} 45. Ra8+ {[%emt 0:08:06]} Ke7 {[%emt 0:00:41]} 46. Ra7+ {[%emt 0:05:00]} Ke6 {[%emt 0:07:04]} 1/2-1/2

[Event "Fagernes GM-A 2019"]
[Site "Fagernes"]
[Date "2019.04.20"]
[Round "8.6"]
[White "Sisatto, Olli"]
[Black "Vestby-Ellingsen, Mads"]
[Result "1/2-1/2"]
[ECO "D97"]
[WhiteElo "2276"]
[BlackElo "2333"]
[Annotator "NA"]
[PlyCount "134"]
[EventDate "2019.04.14"]
[EventType "tourn"]
[EventCountry "NOR"]
[SourceTitle "playchess.com"]
[Source "ChessBase"]
[SourceQuality "1"]
[TimeControl "40/7200:3600"]

1. d4 {[%emt 0:00:05]} Nf6 {[%emt 0:00:08]} 2. c4 {[%emt 0:00:13]} g6 {[%emt 0:00:08]} 3. Nc3 {[%emt 0:00:18]} d5 {[%emt 0:00:09]} 4. Nf3 {[%emt 0:01:50]} Bg7 {[%emt 0:00:16]} 5. Qb3 {[%emt 0:00:22]} dxc4 {[%emt 0:00:20]} 6. Qxc4 {[%emt 0:00:10]} O-O {[%emt 0:00:19]} 7. e4 {[%emt 0:00:15]} Na6 {[%emt 0:00:48]} 8. Be2 {[%emt 0:00:47]} c5 {[%emt 0:00:16]} 9. d5 {[%emt 0:00:32]} e6 {[%emt 0:00:15]} 10. O-O {[%emt 0:00:27]} exd5 {[%emt 0:00:18]} 11. exd5 {[%emt 0:00:14]} Bf5 {[%emt 0:02:05]} 12. Be3 {[%emt 0:11:19]} Re8 {[%emt 0:13:26]} 13. Rad1 {[%emt 0:03:54]} Ne4 {[%emt 0:15:50]} 14. Nxe4 {[%emt 0:04:22]} Bxe4 {[%emt 0:05:14]} 15. d6 {[%emt 0:09:35]} Bc6 {[%emt 0:11:39]} 16. Ng5 {[%emt 0:18:00]} Qf6 {[%emt 0:11:43]} 17. d7 {[%emt 0:11:49]} Red8 {[%emt 0:04:23]} 18. Bf3 {[%emt 0:08:47]} Bxf3 {[%emt 0:07:31]} 19. Nxf3 {[%emt 0:04:25]} Qc6 {[%emt 0:00:22]} 20. Qd5 {[%emt 0:27:53]} Qxd5 {[%emt 0:01:19]} 21. Rxd5 {[%emt 0:00:05]} Nb4 {[%emt 0:11:24]} 22. Rd2 {[%emt 0:06:19]} c4 {[%emt 0:06:11]} 23. Bg5 {[%emt 0:00:07]} f6 {[%emt 0:00:12]} 24. Be3 {[%emt 0:00:12]} Nd3 {[%emt 0:00:37]} 25. b3 {[%emt 0:00:17]} b5 {[%emt 0:02:03]} 26. bxc4 {[%emt 0:00:08]} bxc4 {[%emt 0:00:07]} 27. Rc2 {[%emt 0:00:16]} Nb4 {[%emt 0:04:55]} 28. Rxc4 {[%emt 0:00:12]} Nd5 {[%emt 0:00:08]} 29. Rd1 {[%emt 0:01:17]} Rxd7 {[%emt 0:00:11]} 30. Rcd4 {[%emt 0:01:58]} Nxe3 {[%emt 0:00:37]} 31. Rxd7 {[%emt 0:00:31]} Nxd1 {[%emt 0:00:10]} 32. Rxd1 {[%emt 0:00:04]} Rb8 {[%emt 0:00:51]} 33. Kf1 {[%emt 0:00:15]} Bf8 {[%emt 0:01:24]} 34. Rd2 {[%emt 0:00:26]} a5 {[%emt 0:00:40]} 35. Ke2 {[%emt 0:00:47]} a4 {[%emt 0:01:20]} 36. Rc2 {[%emt 0:00:09]} Kf7 {[%emt 0:01:49]} 37. Ne1 {[%emt 0:00:21]} Ke6 {[%emt 0:02:25]} 38. Nd3 {[%emt 0:00:05]} Bd6 {[%emt 0:00:12]} 39. h3 {[%emt 0:00:13]} a3 {[%emt 0:00:56]} 40. Kd2 {[%emt 0:00:33]} Kd5 {[%emt 0:00:55]} 41. Rc3 {[%emt 0:12:23]} Rb1 {[%emt 0:08:27]} 42. Rc1 {[%emt 0:05:07]} Rb7 {[%emt 0:08:22]} 43. Rc3 {[%emt 0:00:52]} f5 {[%emt 0:01:10]} 44. Kc2 {[%emt 0:04:40]} g5 {[%emt 0:03:55]} 45. Rc8 {[%emt 0:02:43]} Rc7+ {[%emt 0:08:09]} 46. Rxc7 {[%emt 0:00:23]} Bxc7 {[%emt 0:00:07]} 47. Kb3 {[%emt 0:04:38]} Bd6 {[%emt 0:01:52]} 48. Ne1 {[%emt 0:01:25]} g4 {[%emt 0:01:55]} 49. Nc2 {[%emt 0:02:09]} gxh3 {[%emt 0:05:45]} 50. gxh3 {[%emt 0:00:43]} Ke4 {[%emt 0:00:46]} 51. Nxa3 {[%emt 0:00:43]} Kf3 {[%emt 0:01:19]} 52. Nc4 {[%emt 0:05:00]} Bb8 {[%emt 0:00:08]} 53. Kc3 {[%emt 0:04:22]} Kxf2 {[%emt 0:01:08]} 54. Kd3 {[%emt 0:03:44]} h5 {[%emt 0:11:44]} 55. a4 {[%emt 0:00:23]} Kg3 {[%emt 0:03:47]} 56. Ke2 {[%emt 0:01:33]} Kxh3 {[%emt 0:01:12]} 57. Kf3 {[%emt 0:00:19]} Kh2 {[%emt 0:00:55]} 58. Ne3 {[%emt 0:01:35]} h4 {[%emt 0:01:38]} 59. Nxf5 {[%emt 0:00:16]} h3 {[%emt 0:00:23]} 60. Kg4 {[%emt 0:02:11]} Ba7 {[%emt 0:00:11]} 61. Nh4 {[%emt 0:01:41]} Bf2 {[%emt 0:00:05]} 62. Nf3+ {[%emt 0:00:11]} Kg2 {[%emt 0:00:02]} 63. a5 {[%emt 0:00:06]} Bg3 {[%emt 0:01:10]} 64. a6 {[%emt 0:00:22]} Bf2 {[%emt 0:00:03]} 65. Ne1+ {[%emt 0:01:12]} Kf1 {[%emt 0:00:08]} 66. Kxh3 {[%emt 0:00:13]} Kxe1 {[%emt 0:00:03]} 67. a7 {[%emt 0:00:04]} Bxa7 {[%emt 0:02:00]} 1/2-1/2

[Event "Fagernes GM-A 2019"]
[Site "Fagernes"]
[Date "2019.04.20"]
[Round "8.7"]
[White "Vorobiov, Evgeny E."]
[Black "Nielsen, Andre"]
[Result "1-0"]
[ECO "D57"]
[WhiteElo "2565"]
[BlackElo "2201"]
[Annotator "ChessBase"]
[PlyCount "81"]
[EventDate "2019.04.14"]
[EventType "tourn"]
[EventCountry "NOR"]
[SourceTitle "playchess.com"]
[Source "ChessBase"]
[SourceQuality "1"]
[TimeControl "40/7200:3600"]

1. Nf3 {[%emt 0:00:04]} d5 {[%emt 0:00:58]} 2. d4 {[%emt 0:00:05]} Nf6 {[%emt 0:00:21]} 3. c4 {[%emt 0:00:04]} e6 {[%emt 0:00:45]} 4. Nc3 {[%emt 0:00:05]} Be7 {[%emt 0:00:54]} 5. Bg5 {[%emt 0:00:13]} O-O {[%emt 0:00:47]} 6. e3 {[%emt 0:00:06]} h6 {[%emt 0:13:43]} 7. Bh4 {[%emt 0:01:18]} Ne4 {[%emt 0:00:28]} 8. Bxe7 {[%emt 0:00:12]} Qxe7 {[%emt 0:00:07]} 9. cxd5 {[%emt 0:00:32]} Nxc3 {[%emt 0:01:52]} 10. bxc3 {[%emt 0:00:05]} exd5 {[%emt 0:00:17]} 11. Qb3 {[%emt 0:00:04]} c6 {[%emt 0:07:05]} 12. Be2 {[%emt 0:05:12]} Nd7 {[%emt 0:09:39]} 13. a4 {[%emt 0:01:33]} Nf6 {[%emt 0:04:56]} 14. O-O {[%emt 0:03:13]} Bg4 {[%emt 0:05:27]} 15. h3 {[%emt 0:00:48]} Be6 {[%emt 0:01:05]} 16. a5 {[%emt 0:05:14]} Ne4 {[%emt 0:05:10]} 17. Rfb1 {[%emt 0:07:16]} Rab8 {[%emt 0:04:40]} 18. c4 {[%emt 0:03:11]} b5 {[%emt 0:11:51]} 19. axb6 {[%emt 0:06:17]} Rxb6 {[%emt 0:02:24]} 20. Qc2 {[%emt 0:00:10]} Rfb8 {[%emt 0:07:02]} 21. Rxb6 {[%emt 0:02:39]} axb6 {[%emt 0:01:12]} 22. Ne5 {[%emt 0:04:19]} Qd6 {[%emt 0:02:52]} 23. Bd3 {[%emt 0:05:45]} Nc5 {[%emt 0:05:27]} 24. cxd5 {[%emt 0:07:32]} Bxd5 {[%emt 0:01:21]} 25. Bh7+ {[%emt 0:06:20]} Kh8 {[%emt 0:08:03]} 26. Ra7 {[%emt 0:01:12]} Rf8 {[%emt 0:01:44]} 27. Bf5 {[%emt 0:11:08]} Qb8 {[%emt 0:05:29]} 28. Ra3 {[%emt 0:01:44]} Qc7 {[%emt 0:04:07]} 29. dxc5 {[%emt 0:14:51]} Qxe5 {[%emt 0:00:14]} 30. cxb6 {[%emt 0:01:29]} Rb8 {[%emt 0:01:22]} 31. e4 {[%emt 0:02:49]} Be6 {[%emt 0:02:08]} 32. Bxe6 {[%emt 0:10:57]} Qxe6 {[%emt 0:00:17]} 33. Ra6 {[%emt 0:03:47]} Kh7 {[%emt 0:02:02]} 34. e5+ {[%emt 0:03:28]} g6 {[%emt 0:00:25]} 35. Qc5 {[%emt 0:00:26]} Kg7 {[%emt 0:02:18]} 36. Kh2 {[%emt 0:03:14]} h5 {[%emt 0:00:26]} 37. Ra4 {[%emt 0:00:28]} Rb7 {[%emt 0:00:18]} 38. Rb4 {[%emt 0:00:33]} Qd7 {[%emt 0:00:15]} 39. Rd4 {[%emt 0:00:27]} Qf5 {[%emt 0:00:17]} 40. Rd8 {[%emt 0:00:55]} Qf4+ {[%emt 0:00:11]} 41. g3 {[%emt 1:00:07]} 1-0

[Event "Fagernes GM-A 2019"]
[Site "Fagernes"]
[Date "2019.04.20"]
[Round "8.8"]
[White "Blomqvist, Erik"]
[Black "Galinsky, Timofey"]
[Result "1-0"]
[ECO "C10"]
[WhiteElo "2496"]
[BlackElo "2378"]
[Annotator "ChessBase"]
[PlyCount "195"]
[EventDate "2019.04.14"]
[EventType "tourn"]
[EventCountry "NOR"]
[SourceTitle "playchess.com"]
[Source "ChessBase"]
[SourceQuality "1"]
[TimeControl "40/7200:3600"]

1. e4 {[%emt 0:00:30]} e6 {[%emt 0:00:06]} 2. d4 {[%emt 0:00:06]} d5 {[%emt 0:00:07]} 3. Nd2 {[%emt 0:00:21]} dxe4 {[%emt 0:00:36]} 4. Nxe4 {[%emt 0:00:07]} Bd7 {[%emt 0:00:52]} 5. Nf3 {[%emt 0:00:17]} Bc6 {[%emt 0:00:10]} 6. Bd3 {[%emt 0:00:16]} Nd7 {[%emt 0:00:37]} 7. Qe2 {[%emt 0:08:17]} Ngf6 {[%emt 0:01:35]} 8. Neg5 {[%emt 0:00:56]} Bxf3 {[%emt 0:01:15]} 9. Nxf3 {[%emt 0:00:19]} c6 {[%emt 0:02:09]} 10. O-O {[%emt 0:01:24]} Be7 {[%emt 0:00:09]} 11. c3 {[%emt 0:02:51]} O-O {[%emt 0:00:43]} 12. Bf4 {[%emt 0:04:05]} Re8 {[%emt 0:02:17]} 13. Rfe1 {[%emt 0:01:46]} Nf8 {[%emt 0:00:34]} 14. Rad1 {[%emt 0:01:27]} Qa5 {[%emt 0:03:02]} 15. Bb1 {[%emt 0:01:21]} Ng6 {[%emt 0:03:52]} 16. Bc1 {[%emt 0:03:12]} Rad8 {[%emt 0:05:11]} 17. g3 {[%emt 0:05:26]} a6 {[%emt 0:02:12]} 18. h4 {[%emt 0:13:40]} Qh5 {[%emt 0:02:48]} 19. a4 {[%emt 0:25:29]} Nd5 {[%emt 0:06:31]} 20. a5 {[%emt 0:02:37]} Bd6 {[%emt 0:04:10]} 21. Nd2 {[%emt 0:06:31]} Qxe2 {[%emt 0:00:53]} 22. Rxe2 {[%emt 0:00:04]} Bc7 {[%emt 0:01:58]} 23. Nc4 {[%emt 0:07:03]} Nf8 {[%emt 0:01:54]} 24. Rde1 {[%emt 0:03:46]} Nd7 {[%emt 0:02:06]} 25. Be4 {[%emt 0:00:24]} N7f6 {[%emt 0:00:17]} 26. Bf3 {[%emt 0:00:13]} Rc8 {[%emt 0:02:13]} 27. Bd2 {[%emt 0:03:22]} Red8 {[%emt 0:00:30]} 28. b4 {[%emt 0:00:17]} h6 {[%emt 0:00:48]} 29. Kg2 {[%emt 0:00:27]} Kf8 {[%emt 0:01:48]} 30. Ra1 {[%emt 0:01:48]} Kg8 {[%emt 0:00:18]} 31. Nb2 {[%emt 0:00:54]} Ne7 {[%emt 0:02:17]} 32. Nd3 {[%emt 0:00:33]} Rb8 {[%emt 0:01:04]} 33. Kf1 {[%emt 0:05:18]} Nf5 {[%emt 0:01:37]} 34. Kg2 {[%emt 0:00:06]} Nd5 {[%emt 0:01:57]} 35. Rh1 {[%emt 0:01:34]} Nd6 {[%emt 0:03:07]} 36. Ra1 {[%emt 0:00:54]} Nf5 {[%emt 0:01:21]} 37. Be1 {[%emt 0:00:53]} Nf6 {[%emt 0:00:44]} 38. Kh3 {[%emt 0:02:27]} Nd6 {[%emt 0:01:04]} 39. Kg2 {[%emt 0:01:48]} Nf5 {[%emt 0:00:25]} 40. Raa2 {[%emt 0:03:57]} Nd6 {[%emt 0:04:39]} 41. Bd2 {[%emt 0:07:40]} Nf5 {[%emt 0:01:43]} 42. Re1 {[%emt 0:00:36]} Nd5 {[%emt 0:01:24]} 43. Nc5 {[%emt 0:01:26]} Nd6 {[%emt 0:01:51]} 44. Rc2 {[%emt 0:01:06]} Nf5 {[%emt 0:00:28]} 45. Bc1 {[%emt 0:02:14]} Nd6 {[%emt 0:02:54]} 46. Be2 {[%emt 0:03:42]} Nf5 {[%emt 0:01:57]} 47. Bd3 {[%emt 0:02:47]} Bd6 {[%emt 0:10:51]} 48. Bd2 {[%emt 0:03:38]} Nf6 {[%emt 0:02:16]} 49. Bc4 {[%emt 0:03:29]} Kh8 {[%emt 0:03:57]} 50. Bc1 {[%emt 0:00:51]} Nd5 {[%emt 0:00:42]} 51. h5 {[%emt 0:00:56]} Bc7 {[%emt 0:01:08]} 52. f4 {[%emt 0:01:54]} Nf6 {[%emt 0:06:44]} 53. Rh1 {[%emt 0:00:16]} Nd7 {[%emt 0:01:15]} 54. Ra2 {[%emt 0:01:57]} Nd6 {[%emt 0:00:47]} 55. Bd3 {[%emt 0:02:19]} Nb5 {[%emt 0:01:20]} 56. Nxd7 {[%emt 0:00:55]} Rxd7 {[%emt 0:00:15]} 57. Bd2 {[%emt 0:00:25]} Rbd8 {[%emt 0:01:01]} 58. Be1 {[%emt 0:00:13]} Bb8 {[%emt 0:00:25]} 59. Re2 {[%emt 0:00:21]} Bd6 {[%emt 0:02:03]} 60. Bc4 {[%emt 0:00:30]} Nc7 {[%emt 0:01:33]} 61. Kf3 {[%emt 0:00:17]} Nd5 {[%emt 0:01:23]} 62. Bd2 {[%emt 0:00:30]} Nf6 {[%emt 0:00:09]} 63. Bb3 {[%emt 0:00:56]} Bf8 {[%emt 0:02:19]} 64. g4 {[%emt 0:00:42]} Nd5 {[%emt 0:01:37]} 65. Bc2 {[%emt 0:00:37]} Nc7 {[%emt 0:03:50]} 66. g5 {[%emt 0:01:46]} Nb5 {[%emt 0:01:29]} 67. Kf2 {[%emt 0:06:55]} Be7 {[%emt 0:09:50]} 68. Rg1 {[%emt 0:01:51]} hxg5 {[%emt 0:05:56]} 69. fxg5 {[%emt 0:00:03]} f6 {[%emt 0:05:10]} 70. Rxe6 {[%emt 0:00:51]} Bxb4 {[%emt 0:01:32]} 71. gxf6 {[%emt 0:01:55]} Rf8 {[%emt 0:00:43]} 72. h6 {[%emt 0:01:22]} gxf6 {[%emt 0:00:14]} 73. Rg7 {[%emt 0:01:03]} Rxg7 {[%emt 0:12:43]} 74. hxg7+ {[%emt 0:00:02]} Kxg7 {[%emt 0:00:04]} 75. cxb4 {[%emt 0:00:04]} Nxd4 {[%emt 0:00:07]} 76. Re7+ {[%emt 0:00:02]} Rf7 {[%emt 0:00:05]} 77. Rxf7+ {[%emt 0:00:03]} Kxf7 {[%emt 0:00:05]} 78. Bd1 {[%emt 0:00:03]} Ke6 {[%emt 0:00:47]} 79. Ke3 {[%emt 0:00:05]} Kd5 {[%emt 0:00:27]} 80. Bc3 {[%emt 0:00:20]} Nf5+ {[%emt 0:03:11]} 81. Kd3 {[%emt 0:00:04]} Kd6 {[%emt 0:02:03]} 82. Bxf6 {[%emt 0:01:08]} c5 {[%emt 0:00:04]} 83. Bg4 {[%emt 0:00:37]} Nh6 {[%emt 0:00:24]} 84. Bf3 {[%emt 0:00:10]} cxb4 {[%emt 0:01:23]} 85. Bxb7 {[%emt 0:00:02]} Ng4 {[%emt 0:00:27]} 86. Bd4 {[%emt 0:00:08]} b3 {[%emt 0:04:40]} 87. Kc3 {[%emt 0:00:01]} Nh6 {[%emt 0:00:15]} 88. Kxb3 {[%emt 0:00:09]} Nf5 {[%emt 0:00:01]} 89. Bb6 {[%emt 0:00:03]} Ne7 {[%emt 0:00:04]} 90. Bxa6 {[%emt 0:00:18]} Kc6 {[%emt 0:00:03]} 91. Be2 {[%emt 0:00:18]} Nc8 {[%emt 0:00:02]} 92. Be3 {[%emt 0:00:07]} Kb7 {[%emt 0:00:06]} 93. Kb4 {[%emt 0:00:04]} Nd6 {[%emt 0:00:11]} 94. Bf3+ {[%emt 0:00:01]} Ka6 {[%emt 0:00:01]} 95. Be2+ {[%emt 0:00:02]} Kb7 {[%emt 0:00:01]} 96. Bf4 {[%emt 0:00:04]} Ne4 {[%emt 0:00:12]} 97. Bf3 {[%emt 0:00:10]} Ka6 {[%emt 0:00:01]} 98. Bxe4 {[%emt 0:00:04]} 1-0

[Event "Fagernes GM-A 2019"]
[Site "Fagernes"]
[Date "2019.04.20"]
[Round "8.9"]
[White "Mihajlov, Sebastian"]
[Black "Santarius, Erik"]
[Result "1/2-1/2"]
[ECO "C44"]
[WhiteElo "2361"]
[BlackElo "2411"]
[Annotator "ChessBase"]
[PlyCount "60"]
[EventDate "2019.04.14"]
[EventType "tourn"]
[EventCountry "NOR"]
[SourceTitle "playchess.com"]
[Source "ChessBase"]
[SourceQuality "1"]
[TimeControl "40/7200:3600"]

1. e4 {[%emt 0:07:17]} e5 {[%emt 0:00:20]} 2. Nf3 {[%emt 0:00:39]} Nc6 {[%emt 0:00:09]} 3. d4 {[%emt 0:00:44]} exd4 {[%emt 0:00:09]} 4. Bc4 {[%emt 0:00:04]} Bc5 {[%emt 0:01:10]} 5. O-O {[%emt 0:00:10]} d6 {[%emt 0:01:19]} 6. c3 {[%emt 0:01:42]} Bg4 {[%emt 0:01:44]} 7. Qb3 {[%emt 0:06:09]} Bxf3 {[%emt 0:01:18]} 8. Bxf7+ {[%emt 0:00:55]} Kf8 {[%emt 0:00:09]} 9. Bxg8 {[%emt 0:02:54]} Rxg8 {[%emt 0:00:45]} 10. gxf3 {[%emt 0:00:03]} Bb6 {[%emt 0:07:04]} 11. Qe6 {[%emt 0:06:28]} Qf6 {[%emt 0:07:11]} 12. Qh3 {[%emt 0:03:09]} g5 {[%emt 0:04:32]} 13. Kh1 {[%emt 0:00:10]} Ne5 {[%emt 0:05:50]} 14. a4 {[%emt 0:01:44]} dxc3 {[%emt 0:04:29]} 15. Nxc3 {[%emt 0:00:28]} Qxf3+ {[%emt 0:06:52]} 16. Qxf3+ {[%emt 0:00:04]} Nxf3 {[%emt 0:00:08]} 17. a5 {[%emt 0:03:08]} Bc5 {[%emt 0:01:34]} 18. b4 {[%emt 0:06:19]} Bxb4 {[%emt 0:03:20]} 19. Nd5 {[%emt 0:00:25]} c5 {[%emt 0:02:11]} 20. Nxb4 {[%emt 0:00:02]} cxb4 {[%emt 0:00:07]} 21. Rb1 {[%emt 0:00:03]} b5 {[%emt 0:02:44]} 22. a6 {[%emt 0:01:22]} Rg6 {[%emt 0:09:06]} 23. Rxb4 {[%emt 0:00:25]} d5 {[%emt 0:02:16]} 24. exd5 {[%emt 0:00:22]} Rxa6 {[%emt 0:01:26]} 25. Rxb5 {[%emt 0:00:20]} Kf7 {[%emt 0:01:51]} 26. Be3 {[%emt 0:04:20]} Rh6 {[%emt 0:02:17]} 27. Kg2 {[%emt 0:00:04]} Nh4+ {[%emt 0:00:08]} 28. Kh1 {[%emt 0:00:27]} Nf3 {[%emt 0:00:07]} 29. Kg2 {[%emt 0:00:04]} Nh4+ {[%emt 0:00:06]} 30. Kh1 {[%emt 0:00:07]} Nf3 {[%emt 0:00:09]} 1/2-1/2